[Event "Polofinale MCR juniorek 2023"]
[Site "Czech Republic"]
[Date "2023.11.18"]
[Round "9.6"]
[White "Nespora, Tatana"]
[Black "Dudova, Pavlina"]
[Result "1-0"]
[TimeControl "90 min per 40 moves + 15 min + 30 sec / move from move 1"]
[WhiteFideId "392286"]
[BlackFideId "394629"]
[WhiteElo "1690"]
[BlackElo "1763"]

1. e4 {[%clk 01:30:47]} {[%emt 00:00:12]} e6 {[%clk 01:30:49]} {[%emt
00:00:11]} 2. d4 {[%clk 01:30:50]} {[%emt 00:00:27]} d5 {[%clk 01:31:09]}
{[%emt 00:00:10]} 3. Nc3 {[%clk 01:30:27]} {[%emt 00:00:53]} Bb4 {[%clk
01:31:15]} {[%emt 00:00:24]} 4. e5 {[%clk 01:30:18]} {[%emt 00:00:39]} c5
{[%clk 01:31:04]} {[%emt 00:00:41]} 5. a3 {[%clk 01:29:45]} {[%emt 00:01:03]}
Bxc3+ {[%clk 01:31:15]} {[%emt 00:00:19]} 6. bxc3 {[%clk 01:30:03]} {[%emt
00:00:11]} Qa5 {[%clk 01:31:03]} {[%emt 00:00:42]} 7. Bd2 {[%clk 01:29:44]}
{[%emt 00:00:49]} Qa4 {[%clk 01:31:06]} {[%emt 00:00:27]} 8. h4 {[%clk
01:28:00]} {[%emt 00:02:15]} Nc6 {[%clk 01:27:59]} {[%emt 00:03:36]} 9. h5
{[%clk 01:24:35]} {[%emt 00:03:55]} h6 {[%clk 01:23:40]} {[%emt 00:04:50]} 10.
Rh3 {[%clk 01:21:57]} {[%emt 00:03:09]} Nge7 {[%clk 01:22:18]} {[%emt
00:01:51]} 11. Nf3 {[%clk 01:07:56]} {[%emt 00:14:31]} cxd4 {[%clk 01:14:25]}
{[%emt 00:08:24]} 12. cxd4 {[%clk 01:03:49]} {[%emt 00:04:36]} Nxd4 {[%clk
01:11:02]} {[%emt 00:03:52]} 13. Nxd4 {[%clk 01:00:28]} {[%emt 00:03:52]} Qxd4
{[%clk 01:11:17]} {[%emt 00:00:15]} 14. Bc3 {[%clk 00:58:55]} {[%emt 00:02:03]}
Qxd1+ {[%clk 01:11:00]} {[%emt 00:00:48]} 15. Rxd1 {[%clk 00:58:54]} {[%emt
00:00:30]} Bd7 {[%clk 01:10:58]} {[%emt 00:00:30]} 16. Rb1 {[%clk 00:54:56]}
{[%emt 00:04:30]} b6 {[%clk 01:08:53]} {[%emt 00:02:34]} 17. Bb4 {[%clk
00:53:19]} {[%emt 00:02:07]} Rc8 {[%clk 01:06:45]} {[%emt 00:02:36]} 18. Rc1
{[%clk 00:51:17]} {[%emt 00:02:35]} Ba4 {[%clk 01:03:25]} {[%emt 00:03:50]} 19.
c4 {[%clk 00:48:37]} {[%emt 00:03:10]} Kd7 {[%clk 00:58:22]} {[%emt 00:05:32]}
20. g4 {[%clk 00:41:36]} {[%emt 00:07:32]} Rhd8 {[%clk 00:57:07]} {[%emt
00:01:44]} 21. Rhc3 {[%clk 00:38:14]} {[%emt 00:03:53]} dxc4 {[%clk 00:52:25]}
{[%emt 00:05:13]} 22. Rxc4 {[%clk 00:28:30]} {[%emt 00:10:14]} Rxc4 {[%clk
00:51:44]} {[%emt 00:01:10]} 23. Bxc4 {[%clk 00:27:05]} {[%emt 00:01:54]} Rc8
{[%clk 00:50:18]} {[%emt 00:01:57]} 24. Kd2 {[%clk 00:26:38]} {[%emt 00:00:57]}
Nc6 {[%clk 00:46:05]} {[%emt 00:04:43]} 25. Ba6 {[%clk 00:23:09]} {[%emt
00:03:59]} Rd8 {[%clk 00:45:11]} {[%emt 00:01:22]} 26. Bd6 {[%clk 00:22:41]}
{[%emt 00:01:00]} Ke8 {[%clk 00:43:59]} {[%emt 00:01:42]} 27. Ke1 {[%clk
00:22:05]} {[%emt 00:01:05]} Nb8 {[%clk 00:41:36]} {[%emt 00:02:53]} 28. Bb7
{[%clk 00:21:30]} {[%emt 00:01:05]} Nd7 {[%clk 00:39:38]} {[%emt 00:02:28]} 29.
Rc7 {[%clk 00:14:30]} {[%emt 00:07:30]} Bb5 {[%clk 00:36:39]} {[%emt 00:03:28]}
30. Bc6 {[%clk 00:13:19]} {[%emt 00:01:41]} Bxc6 {[%clk 00:36:41]} {[%emt
00:00:29]} 31. Rxc6 {[%clk 00:13:42]} {[%emt 00:00:06]} Ra8 {[%clk 00:35:30]}
{[%emt 00:01:41]} 32. Rc7 {[%clk 00:12:59]} {[%emt 00:01:13]} Kd8 {[%clk
00:35:21]} {[%emt 00:00:39]} 33. f4 {[%clk 00:10:51]} {[%emt 00:02:39]} a6
{[%clk 00:33:39]} {[%emt 00:02:13]} 34. f5 {[%clk 00:08:33]} {[%emt 00:02:48]}
a5 {[%clk 00:33:13]} {[%emt 00:00:56]} 35. f6 {[%clk 00:08:26]} {[%emt
00:00:37]} gxf6 {[%clk 00:32:47]} {[%emt 00:00:56]} 36. exf6 {[%clk 00:08:10]}
{[%emt 00:00:46]} e5 {[%clk 00:31:38]} {[%emt 00:01:39]} 37. g5 {[%clk
00:08:04]} {[%emt 00:00:36]} Rc8 {[%clk 00:27:15]} {[%emt 00:04:54]} 38. Rxc8+
{[%clk 00:03:40]} {[%emt 00:04:53]} Kxc8 {[%clk 00:27:38]} {[%emt 00:00:07]} 39.
Be7 {[%clk 00:01:34]} {[%emt 00:02:37]} 1-0

[Event "Polofinale MCR juniorek 2023"]
[Site "Czech Republic"]
[Date "2023.11.18"]
[Round "9.7"]
[White "Havelkova, Beata"]
[Black "Kavanova, Anezka"]
[Result "1/2-1/2"]
[TimeControl "90 min per 40 moves + 15 min + 30 sec / move from move 1"]
[WhiteFideId "23709405"]
[BlackFideId "23745517"]
[WhiteElo "1736"]
[BlackElo "1434"]

1. e4 {[%clk 01:30:58]} c5 {[%clk 01:30:54]} {[%emt 00:00:07]} 2. c3 {[%clk
01:31:25]} {[%emt 00:00:04]} Nf6 {[%clk 01:31:20]} {[%emt 00:00:04]} 3. e5
{[%clk 01:31:48]} {[%emt 00:00:07]} Nd5 {[%clk 01:31:46]} {[%emt 00:00:04]} 4.
d4 {[%clk 01:32:13]} {[%emt 00:00:05]} cxd4 {[%clk 01:32:10]} {[%emt 00:00:06]}
5. Nf3 {[%clk 01:32:39]} {[%emt 00:00:04]} Nc6 {[%clk 01:32:30]} {[%emt
00:00:09]} 6. cxd4 {[%clk 01:33:04]} {[%emt 00:00:06]} d6 {[%clk 01:32:46]}
{[%emt 00:00:14]} 7. Bc4 {[%clk 01:33:23]} {[%emt 00:00:11]} Nb6 {[%clk
01:33:11]} {[%emt 00:00:05]} 8. Bb3 {[%clk 01:29:43]} {[%emt 00:04:10]} dxe5
{[%clk 01:33:29]} {[%emt 00:00:13]} 9. d5 {[%clk 01:27:06]} {[%emt 00:03:06]}
Na5 {[%clk 01:33:53]} {[%emt 00:00:06]} 10. Nxe5 {[%clk 01:25:33]} {[%emt
00:02:03]} Nxb3 {[%clk 01:33:14]} {[%emt 00:01:09]} 11. Qxb3 {[%clk 01:23:26]}
{[%emt 00:02:37]} Qxd5 {[%clk 01:33:31]} {[%emt 00:00:13]} 12. Qg3 {[%clk
01:23:14]} {[%emt 00:00:42]} g6 {[%clk 01:31:04]} {[%emt 00:02:56]} 13. Nc3
{[%clk 01:22:21]} {[%emt 00:01:24]} Qa5 {[%clk 01:25:51]} {[%emt 00:05:43]} 14.
O-O {[%clk 01:20:54]} {[%emt 00:01:57]} Bg7 {[%clk 01:26:16]} {[%emt 00:00:05]}
15. Re1 {[%clk 01:18:10]} {[%emt 00:03:15]} Be6 {[%clk 01:24:59]} {[%emt
00:01:47]} 16. Bd2 {[%clk 01:05:29]} {[%emt 00:13:11]} O-O {[%clk 01:19:36]}
{[%emt 00:02:34]} 17. h4 {[%clk 01:04:59]} {[%emt 00:04:19]} Rad8 {[%clk
01:13:28]} {[%emt 00:06:38]} 18. Rad1 {[%clk 01:02:47]} {[%emt 00:02:42]} Nd5
{[%clk 00:57:17]} {[%emt 00:16:41]} 19. h5 {[%clk 00:59:01]} {[%emt 00:04:15]}
Nxc3 {[%clk 00:52:53]} {[%emt 00:04:54]} 20. Bxc3 {[%clk 00:57:13]} {[%emt
00:02:19]} Qb6 {[%clk 00:51:41]} {[%emt 00:01:36]} 21. Rxd8 {[%clk 00:51:39]}
{[%emt 00:06:09]} Rxd8 {[%clk 00:47:36]} {[%emt 00:04:35]} 22. hxg6 {[%clk
00:44:59]} {[%emt 00:07:09]} hxg6 {[%clk 00:47:59]} {[%emt 00:00:07]} 23. Nxg6
{[%clk 00:37:34]} {[%emt 00:07:56]} Bxc3 {[%clk 00:48:19]} {[%emt 00:00:10]} 24.
Ne5+ {[%clk 00:37:43]} {[%emt 00:00:21]} Kf8 {[%clk 00:48:19]} {[%emt
00:00:31]} 25. Qxc3 {[%clk 00:36:21]} {[%emt 00:01:52]} f6 {[%clk 00:46:57]}
{[%emt 00:01:51]} 26. Ng6+ {[%clk 00:35:21]} {[%emt 00:01:30]} Kf7 {[%clk
00:47:16]} {[%emt 00:00:11]} 27. Qc2 {[%clk 00:29:34]} {[%emt 00:06:17]} Qb4
{[%clk 00:42:47]} {[%emt 00:04:53]} 28. Re4 {[%clk 00:20:45]} {[%emt 00:09:26]}
Qd2 {[%clk 00:41:23]} {[%emt 00:01:53]} 29. Nh8+ {[%clk 00:19:05]} {[%emt
00:02:10]} Kg8 {[%clk 00:39:48]} {[%emt 00:02:04]} 30. Qxd2 {[%clk 00:18:54]}
{[%emt 00:00:43]} Rxd2 {[%clk 00:40:06]} {[%emt 00:00:12]} 31. Rxe6 {[%clk
00:18:56]} {[%emt 00:00:27]} Kxh8 {[%clk 00:40:33]} {[%emt 00:00:03]} 32. Rxe7
{[%clk 00:18:23]} {[%emt 00:01:03]} Rxb2 {[%clk 00:40:58]} {[%emt 00:00:05]} 33.
a3 {[%clk 00:16:47]} {[%emt 00:02:07]} Rb3 {[%clk 00:41:11]} {[%emt 00:00:16]}
34. f3 {[%clk 00:13:41]} {[%emt 00:03:36]} Kg8 {[%clk 00:40:46]} {[%emt
00:00:55]} 35. Kf2 {[%clk 00:13:24]} {[%emt 00:00:47]} a6 {[%clk 00:41:09]}
{[%emt 00:00:07]} 36. a4 {[%clk 00:13:09]} {[%emt 00:00:45]} a5 {[%clk
00:39:34]} {[%emt 00:02:04]} 37. Re4 {[%clk 00:11:29]} {[%emt 00:02:09]} Kf7
{[%clk 00:39:33]} {[%emt 00:00:31]} 38. g4 {[%clk 00:11:09]} {[%emt 00:00:51]}
b5 {[%clk 00:38:36]} {[%emt 00:01:27]} 39. axb5 {[%clk 00:11:15]} {[%emt
00:00:24]} Rxb5 {[%clk 00:39:01]} {[%emt 00:00:04]} 40. f4 {[%clk 00:08:25]}
{[%emt 00:03:20]} Rb4 {[%clk 00:38:10]} {[%emt 00:01:21]} 41. Rxb4 {[%clk
00:07:38]} {[%emt 00:01:16]} axb4 {[%clk 00:38:35]} {[%emt 00:00:05]} 42. Ke3
{[%clk 00:07:24]} {[%emt 00:00:44]} Ke6 {[%clk 00:39:02]} {[%emt 00:00:03]} 43.
Kd4 {[%clk 00:05:31]} {[%emt 00:02:23]} b3 {[%clk 00:39:18]} {[%emt 00:00:15]}
44. Kc3 {[%emt 00:03:13]} 1/2-1/2

[Event "Polofinale MCR juniorek 2023"]
[Site "Czech Republic"]
[Date "2023.11.18"]
[Round "9.8"]
[White "Hosova, Sandra"]
[Black "Reznickova, Sibyla"]
[Result "0-1"]
[TimeControl "90 min per 40 moves + 15 min + 30 sec / move from move 1"]
[WhiteFideId "397717"]
[BlackFideId "398721"]
[WhiteElo "1730"]
[BlackElo "1413"]

1. d4 {[%clk 01:25:51]} {[%emt 00:05:09]} d5 {[%clk 01:30:11]} {[%emt
00:00:48]} 2. Nf3 {[%clk 01:26:10]} {[%emt 00:00:11]} Bf5 {[%clk 01:30:01]}
{[%emt 00:00:41]} 3. e3 {[%clk 01:25:54]} {[%emt 00:00:46]} Nf6 {[%clk
01:30:09]} {[%emt 00:00:22]} 4. c4 {[%clk 01:26:10]} {[%emt 00:00:15]} e6
{[%clk 01:30:21]} {[%emt 00:00:18]} 5. Nc3 {[%clk 01:26:16]} {[%emt 00:00:23]}
Nc6 {[%clk 01:29:54]} {[%emt 00:00:57]} 6. Qb3 {[%clk 01:26:28]} {[%emt
00:00:18]} Nb4 {[%clk 01:25:59]} {[%emt 00:04:25]} 7. cxd5 {[%clk 01:10:07]}
{[%emt 00:16:52]} exd5 {[%clk 01:10:19]} {[%emt 00:16:10]} 8. Ne5 {[%clk
01:05:34]} {[%emt 00:05:02]} Bc2 {[%clk 01:05:09]} {[%emt 00:05:39]} 9. Bb5+
{[%clk 01:01:24]} {[%emt 00:04:41]} c6 {[%clk 01:03:11]} {[%emt 00:02:28]} 10.
Nxc6 {[%clk 01:01:10]} {[%emt 00:00:44]} bxc6 {[%clk 01:01:46]} {[%emt
00:01:56]} 11. Bxc6+ {[%clk 01:01:28]} {[%emt 00:00:12]} Nd7 {[%emt 00:04:10]}
0-1

[Event "Polofinale MCR juniorek 2023"]
[Site "Czech Republic"]
[Date "2023.11.18"]
[Round "9.9"]
[White "Stavova, Helena"]
[Black "Stavova, Marketa"]
[Result "1/2-1/2"]
[TimeControl "90 min per 40 moves + 15 min + 30 sec / move from move 1"]
[WhiteFideId "23714751"]
[BlackFideId "23714824"]
[WhiteElo "1425"]
[BlackElo "1433"]

1. e4 {[%clk 01:30:55]} {[%emt 00:00:03]} e5 {[%clk 01:30:46]} {[%emt
00:00:15]} 2. Nc3 {[%clk 01:31:06]} {[%emt 00:00:19]} Nc6 {[%clk 01:30:54]}
{[%emt 00:00:22]} 3. g3 {[%clk 01:30:53]} {[%emt 00:00:43]} Bc5 {[%clk
01:30:10]} {[%emt 00:01:15]} 4. Bg2 {[%clk 01:30:31]} {[%emt 00:00:52]} d6
{[%clk 01:29:54]} {[%emt 00:00:46]} 5. Na4 {[%clk 01:30:12]} {[%emt 00:00:49]}
Bb6 {[%clk 01:29:48]} {[%emt 00:00:35]} 6. Nxb6 {[%clk 01:30:32]} {[%emt
00:00:10]} axb6 {[%clk 01:30:13]} {[%emt 00:00:06]} 7. Ne2 {[%clk 01:30:46]}
{[%emt 00:00:15]} Be6 {[%clk 01:29:16]} {[%emt 00:01:27]} 8. d4 {[%clk
01:28:14]} {[%emt 00:03:03]} exd4 {[%clk 01:29:19]} {[%emt 00:00:26]} 9. Nxd4
{[%clk 01:28:37]} {[%emt 00:00:07]} Nxd4 {[%clk 01:28:40]} {[%emt 00:01:09]} 10.
Qxd4 {[%clk 01:28:57]} {[%emt 00:00:09]} Nf6 {[%clk 01:28:54]} {[%emt
00:00:17]} 11. O-O {[%clk 01:28:41]} {[%emt 00:00:46]} O-O {[%clk 01:28:41]}
{[%emt 00:00:43]} 12. a3 {[%clk 01:18:51]} {[%emt 00:10:20]} Qd7 {[%clk
01:26:55]} {[%emt 00:02:15]} 13. Re1 {[%clk 01:15:24]} {[%emt 00:03:56]} Bh3
{[%clk 01:23:46]} {[%emt 00:03:40]} 14. Bg5 {[%clk 01:04:03]} {[%emt 00:11:51]}
Bxg2 {[%clk 01:17:37]} {[%emt 00:06:40]} 15. Kxg2 {[%clk 00:59:26]} {[%emt
00:05:06]} Ng4 {[%clk 01:16:49]} {[%emt 00:01:18]} 16. h3 {[%clk 00:55:47]}
{[%emt 00:04:08]} Ne5 {[%clk 01:16:40]} {[%emt 00:00:39]} 17. Bd2 {[%clk
00:54:22]} {[%emt 00:01:54]} Nc6 {[%clk 01:14:29]} {[%emt 00:02:42]} 18. Qe3
{[%clk 00:50:54]} {[%emt 00:03:58]} Qe6 {[%clk 01:13:15]} {[%emt 00:01:43]} 19.
Bc3 {[%clk 00:49:46]} {[%emt 00:01:38]} Qg6 {[%clk 01:12:43]} {[%emt 00:01:02]}
20. Qd3 {[%clk 00:42:09]} {[%emt 00:08:07]} Rae8 {[%clk 01:11:36]} {[%emt
00:01:37]} 21. Qd5 {[%clk 00:40:56]} {[%emt 00:01:44]} Kh8 {[%clk 01:10:46]}
{[%emt 00:01:20]} 22. Rad1 {[%clk 00:38:33]} {[%emt 00:02:53]} f6 {[%clk
01:09:17]} {[%emt 00:01:59]} 23. f4 {[%clk 00:34:04]} {[%emt 00:04:59]} Re7
{[%clk 01:06:20]} {[%emt 00:03:26]} 24. Rd2 {[%clk 00:32:47]} {[%emt 00:01:47]}
Rfe8 {[%clk 01:03:56]} {[%emt 00:02:55]} 25. Rde2 {[%clk 00:33:10]} {[%emt
00:00:08]} Rd8 {[%clk 01:00:22]} {[%emt 00:04:04]} 26. b4 {[%clk 00:31:12]}
{[%emt 00:02:28]} Rde8 {[%clk 01:00:17]} {[%emt 00:00:34]} 27. b5 {[%clk
00:30:32]} {[%emt 00:01:10]} Nd8 {[%clk 01:00:39]} {[%emt 00:00:08]} 28. e5
{[%clk 00:28:33]} {[%emt 00:02:29]} fxe5 {[%clk 00:58:43]} {[%emt 00:02:25]} 29.
fxe5 {[%clk 00:28:28]} {[%emt 00:00:35]} Ne6 {[%clk 00:56:39]} {[%emt
00:02:35]} 30. Kh2 {[%clk 00:27:11]} {[%emt 00:01:45]} Nc5 {[%emt 00:07:40]} 31.
Bd4 Nd7 {[%emt 00:00:02]} 1/2-1/2

[Event "Polofinale MCR juniorek 2023"]
[Site "Czech Republic"]
[Date "2023.11.18"]
[Round "9.11"]
[White "Macova, Marketa"]
[Black "Taborska, Aneta"]
[Result "1-0"]
[TimeControl "90 min per 40 moves + 15 min + 30 sec / move from move 1"]
[WhiteFideId "23715588"]
[BlackFideId "23733039"]
[WhiteElo "1416"]
[BlackElo "1165"]

1. e4 {[%clk 01:30:58]} {[%emt 00:00:02]} d5 {[%emt 00:00:11]} 2. exd5 {[%clk
01:31:20]} {[%emt 00:00:05]} Qxd5 {[%clk 01:31:16]} {[%emt 00:00:05]} 3. Nc3
{[%clk 01:31:42]} {[%emt 00:00:08]} Qa5 {[%clk 01:31:40]} {[%emt 00:00:06]} 4.
d4 {[%clk 01:31:47]} {[%emt 00:00:25]} Nf6 {[%clk 01:32:03]} {[%emt 00:00:07]}
5. Nf3 {[%clk 01:31:57]} {[%emt 00:00:20]} Bg4 {[%clk 01:32:26]} {[%emt
00:00:08]} 6. Be2 {[%clk 01:31:57]} {[%emt 00:00:29]} Nc6 {[%clk 01:32:09]}
{[%emt 00:00:47]} 7. h3 {[%clk 01:30:08]} {[%emt 00:02:19]} Bh5 {[%emt
00:00:19]} 8. g4 {[%clk 01:28:09]} {[%emt 00:02:25]} Bg6 {[%clk 01:32:45]}
{[%emt 00:00:10]} 9. Bd2 {[%clk 01:28:17]} {[%emt 00:00:22]} a6 {[%clk
01:31:46]} {[%emt 00:01:29]} 10. Bc4 {[%clk 01:27:08]} {[%emt 00:01:39]} e6
{[%emt 00:03:31]} 11. Nd5 {[%clk 01:23:32]} {[%emt 00:04:03]} Bb4 {[%emt
00:05:41]} 12. Nxf6+ {[%clk 01:16:54]} {[%emt 00:02:24]} gxf6 {[%clk 01:27:27]}
{[%emt 00:01:26]} 13. c3 {[%clk 01:13:34]} {[%emt 00:03:50]} Be7 {[%emt
00:04:52]} 14. Qe2 {[%clk 01:11:17]} {[%emt 00:00:42]} O-O-O {[%clk 01:25:21]}
{[%emt 00:00:19]} 15. O-O-O {[%clk 01:10:17]} {[%emt 00:01:30]} f5 {[%emt
00:13:11]} 16. Rhe1 {[%clk 01:02:36]} {[%emt 00:00:02]} fxg4 {[%clk 01:20:10]}
{[%emt 00:01:09]} 17. hxg4 {[%clk 01:02:35]} {[%emt 00:00:31]} Qb6 {[%clk
01:19:48]} {[%emt 00:00:53]} 18. Ne5 {[%clk 01:01:04]} {[%emt 00:02:00]} Nxe5
{[%clk 01:20:00]} {[%emt 00:00:18]} 19. Qxe5 {[%clk 01:01:16]} {[%emt
00:00:18]} Ba3 {[%clk 01:20:03]} {[%emt 00:00:27]} 20. Bb3 {[%emt 00:01:08]}
Bd6 {[%clk 01:20:04]} {[%emt 00:00:26]} 21. Qf6 {[%clk 00:58:48]} {[%emt
00:02:23]} a5 {[%clk 01:19:34]} {[%emt 00:01:01]} 22. f4 {[%clk 00:55:49]}
{[%emt 00:03:28]} Kd7 {[%emt 00:04:48]} 23. Bxe6+ {[%clk 00:47:00]} {[%emt
00:06:27]} fxe6 {[%clk 01:17:55]} {[%emt 00:00:44]} 24. Qxe6+ {[%clk 00:46:46]}
{[%emt 00:00:43]} Kc6 {[%clk 01:18:18]} {[%emt 00:00:07]} 25. d5+ {[%clk
00:46:50]} {[%emt 00:00:25]} Kb5 {[%clk 01:18:28]} {[%emt 00:00:20]} 26. Qe2+
{[%clk 00:47:03]} {[%emt 00:00:17]} Ka4 {[%clk 01:18:38]} {[%emt 00:00:22]} 27.
Qc4+ {[%clk 00:46:26]} {[%emt 00:01:07]} Bb4 {[%clk 01:18:44]} {[%emt
00:00:24]} 28. cxb4 {[%clk 00:46:03]} {[%emt 00:00:53]} axb4 {[%clk 01:18:50]}
{[%emt 00:00:23]} 29. b3+ {[%clk 00:37:34]} {[%emt 00:09:00]} Ka3 {[%clk
01:19:02]} {[%emt 00:00:18]} 30. f5 {[%clk 00:36:20]} {[%emt 00:01:44]} Bf7
{[%emt 00:02:35]} 31. Kb1 {[%clk 00:29:25]} {[%emt 00:04:56]} Bxd5 {[%clk
01:19:43]} {[%emt 00:00:13]} 32. Qc1# {[%clk 00:29:43]} {[%emt 00:00:11]} 1-0